bitfinex/quotes_SOLUSD_20251002
["timestamp","ask_amount","ask_price","bid_price","bid_amount"]
[1759413508634,34.95658085,226.74,226.68,0.67]
[1759413508835,32.28,226.74,226.68,0.67]
[1759413509438,3.39658085,226.75,226.68,0.67]
[1759413509642,2.67658085,226.74,226.68,0.67]
[1759413509860,7.08701508,226.74,226.68,5.08144368]
[1759413510060,39.36702015,226.74,226.68,5.08144368]
[1759413510233,32.28,226.74,226.7,10.87647521]
[1759413510443,32.28,226.74,226.71,0.67]
[1759413510736,32.28,226.74,226.69,10.87647521]
[1759413510942,32.28,226.74,226.7,0.67]
[1759413511657,32.28,226.74,226.71,0.67]
[1759413511964,4.40989115,226.77,226.72,0.67]
[1759413512142,32.28,226.77,226.73,0.67]
[1759413512348,33.0,226.77,226.71,4.41077231]
[1759413512757,2.67658085,226.72,226.67,20.8]
[1759413512943,2.67658085,226.69,226.65,10.87647521]
[1759413513138,2.67658085,226.69,226.6,24.28475768]
[1759413513460,2.67658085,226.68,226.63,10.87647521]
[1759413513766,2.67658085,226.67,226.63,31.67647521]
[1759413513949,3.39658085,226.68,226.63,31.67647521]
[1759413514141,2.67658085,226.68,226.63,36.75892533]
[1759413514343,4.41141028,226.69,226.63,36.75892533]
[1759413514558,2.67658085,226.68,226.63,11.54647521]
[1759413514764,3.39658085,226.67,226.61,10.87647521]
[1759413515265,2.67658085,226.64,226.61,10.87647521]
[1759413515763,2.67658085,226.64,226.59,4.41325742]
[1759413515968,2.67658085,226.66,226.6,11.54647521]
[1759413516146,34.95658085,226.67,226.61,4.41286792]
[1759413516354,34.95658085,226.67,226.6,15.95951782]
[1759413516549,34.95658085,226.67,226.6,36.75951782]
[1759413516755,0.72,226.68,226.6,36.75951782]
[1759413516956,34.95658085,226.67,226.6,36.75951782]
[1759413517165,39.36834572,226.67,226.6,36.75951782]
[1759413517540,7.08834572,226.67,226.6,36.75951782]
[1759413517742,36.69191314,226.66,226.6,36.75951782]
[1759413517960,36.69191314,226.66,226.6,32.34647521]
[1759413518162,32.28,226.66,226.61,0.67]
[1759413518370,32.28,226.66,226.6,36.08951015]
[1759413518371,32.28,226.66,226.63,10.87647521]
[1759413518869,32.28,226.66,226.63,11.54647521]
[1759413520182,4.41076241,226.72,226.65,10.87647521]
[1759413520368,3.39658085,226.71,226.65,10.87647521]
[1759413521356,2.67658085,226.71,226.67,10.87647521]
[1759413521546,39.36734326,226.72,226.64,4.41208931]
[1759413521873,39.36734326,226.72,226.65,11.54647521]
[1759413522248,2.67658085,226.71,226.65,11.54647521]
[1759413522448,2.67658085,226.7,226.64,10.87647521]
[1759413523156,2.67658085,226.67,226.62,20.8]
[1759413523374,2.67658085,226.67,226.63,10.87647521]
[1759413523584,7.0882865,226.67,226.63,10.87647521]
[1759413525773,2.67658085,226.66,226.63,0.67]
[1759413525971,36.67170565,226.67,226.64,10.87647521]
[1759413526160,39.3482865,226.67,226.62,10.87647521]
[1759413526667,39.3482865,226.67,226.62,0.67]
[1759413526873,2.67658085,226.65,226.6,10.87647521]
[1759413527045,2.67658085,226.63,226.6,10.87647521]
[1759413527250,4.41250202,226.63,226.57,0.67]
[1759413527450,2.67658085,226.62,226.57,0.67]
[1759413527977,2.67658085,226.62,226.59,10.87647521]
[1759413528179,4.41250202,226.63,226.59,10.87647521]
[1759413528477,4.41250202,226.63,226.59,0.67]
[1759413528676,7.08908287,226.63,226.59,0.67]
[1759413529877,2.67658085,226.61,226.6,10.87647521]
[1759413530061,3.39658085,226.61,226.56,10.87647521]
[1759413530379,1.71400819,226.6,226.56,0.67]
[1759413530578,1.71400819,226.61,226.58,10.87647521]
[1759413530879,32.26,226.62,226.58,10.87647521]
[1759413530880,33.97400819,226.62,226.58,10.87647521]
[1759413531249,1.71400819,226.59,226.51,0.67]
[1759413531453,0.72,226.59,226.52,10.87647521]
[1759413531664,1.71400819,226.55,226.52,10.87647521]
[1759413531986,6.1280942,226.55,226.52,10.87647521]
[1759413532151,6.1280942,226.55,226.49,0.2]
[1759413532546,1.71400819,226.54,226.49,0.2]
[1759413532779,6.1280942,226.55,226.51,10.87647521]
[1759413532966,6.1280942,226.55,226.51,0.67]
[1759413534092,1.71400819,226.55,226.51,11.54647521]
[1759413534307,33.97400819,226.56,226.51,11.54647521]
[1759413534963,32.26,226.56,226.52,11.54647521]
[1759413535184,32.26,226.56,226.54,10.87647521]
[1759413535990,4.01880502,226.59,226.54,10.87647521]
[1759413536196,36.67285114,226.62,226.56,10.87647521]
[1759413536362,1.71400819,226.61,226.56,10.87647521]
[1759413536695,1.71400819,226.57,226.52,11.54647521]
[1759413536884,1.71400819,226.57,226.52,10.87647521]
[1759413537074,33.97400819,226.57,226.52,10.87647521]
[1759413537281,33.97400819,226.57,226.54,10.87647521]
[1759413538164,38.38772635,226.57,226.52,31.67647521]
[1759413538367,38.38772635,226.57,226.52,32.34647521]
[1759413538794,38.38772635,226.57,226.51,10.87647521]
[1759413538795,39.07772635,226.57,226.51,10.87647521]
[1759413540279,1.71400819,226.56,226.51,10.87647521]
[1759413540585,1.71400819,226.56,226.51,0.67]
[1759413540889,38.38772635,226.57,226.52,0.67]
[1759413541694,33.97400819,226.57,226.54,10.87647521]
[1759413541900,32.26,226.57,226.54,10.87647521]
[1759413542102,36.67366818,226.57,226.51,4.41469674]
[1759413542277,36.67366818,226.57,226.49,32.03783499]
[1759413542278,36.67366818,226.57,226.52,11.54647521]
[1759413542606,36.67366818,226.57,226.54,10.87647521]
[1759413544102,32.26,226.57,226.5,10.87647521]
[1759413544283,32.26,226.57,226.52,11.54647521]
[1759413544891,38.3877198,226.57,226.52,10.87647521]
[1759413545108,0.69,226.56,226.52,10.87647521]
[1759413545279,2.40400819,226.56,226.52,10.87647521]
[1759413545694,1.71400819,226.56,226.52,11.54647521]
[1759413546003,6.12795003,226.56,226.52,11.54647521]
[1759413546204,4.41394184,226.56,226.52,11.54647521]
[1759413547500,6.12795003,226.56,226.52,10.87647521]
[1759413547888,6.12795003,226.56,226.52,11.54647521]
[1759413548703,33.97400819,226.57,226.52,11.54647521]
[1759413549094,33.97400819,226.57,226.54,10.87647521]
[1759413549298,34.66400819,226.57,226.54,10.87647521]
[1759413549510,1.71400819,226.56,226.52,0.67]
[1759413550217,38.3877292,226.57,226.54,10.87647521]
[1759413550385,39.0777292,226.57,226.52,10.87647521]
[1759413550894,39.0777292,226.57,226.52,11.54647521]
[1759413551692,0.69,226.56,226.5,10.87647521]
[1759413551891,1.71400819,226.51,226.49,0.2]
[1759413552216,38.36901922,226.5,226.49,0.2]
[1759413552413,39.05901922,226.5,226.49,0.2]
[1759413552995,39.05901922,226.5,226.49,1e-08]
[1759413553217,20.8,226.47,226.43,0.2]
[1759413553420,8.57004095,226.44,226.43,0.2]
[1759413553834,22.31242462,226.44,226.43,0.2]
[1759413554113,13.67622183,226.44,226.43,0.2]
[1759413554295,0.69,226.44,226.43,0.2]
[1759413554488,32.24,226.44,226.43,0.2]
[1759413554913,33.95400819,226.44,226.43,0.2]
[1759413555122,13.5311079,226.48,226.43,0.2]
[1759413555291,32.22,226.47,226.43,0.87]
[1759413555491,4.41548918,226.48,226.44,11.54647521]
[1759413555492,1.71400819,226.48,226.44,11.54647521]
[1759413555794,32.22,226.46,226.45,11.54647521]
[1759413556006,32.22,226.46,226.45,10.87647521]
[1759413557014,32.22,226.46,226.45,11.54647521]
[1759413557409,33.61471019,226.57,226.45,11.54647521]
[1759413557410,0.69,226.58,226.46,10.87647521]
[1759413557596,1.71400819,226.54,226.48,10.87647521]
[1759413557920,3.46843752,226.63,226.46,10.87647521]
[1759413557921,2.95172419,226.61,226.5,10.87647521]
[1759413558093,33.93400819,226.6,226.54,10.87647521]
[1759413558294,32.22,226.59,226.56,10.87647521]
[1759413558519,32.22,226.59,226.58,10.87647521]
[1759413559127,32.22,226.59,226.58,0.67]
[1759413560212,32.22,226.59,226.58,11.54647521]
[1759413561090,32.22,226.59,226.58,15.95992741]
[1759413562097,32.22,226.62,226.59,10.87647521]
[1759413562293,32.22,226.62,226.59,0.67]
[1759413562904,32.22,226.62,226.57,10.87647521]
[1759413563111,32.22,226.62,226.61,10.87647521]
[1759413563427,32.22,226.65,226.61,11.59647521]
[1759413563601,32.22,226.65,226.63,10.87647521]
[1759413563802,32.22,226.65,226.63,0.72]
[1759413564001,32.22,226.65,226.61,10.87647521]
[1759413564203,32.22,226.65,226.62,0.72]
[1759413565728,32.22,226.65,226.63,0.72]
[1759413566027,32.22,226.65,226.61,16.00933412]
[1759413566223,32.22,226.65,226.62,0.72]
[1759413566719,32.22,226.65,226.6,11.59647521]
[1759413566928,33.93400819,226.65,226.61,0.72]
[1759413567109,33.93400819,226.65,226.6,10.87647521]
[1759413567310,38.34612931,226.65,226.59,10.87647521]
[1759413567506,1.71400819,226.61,226.59,10.87647521]
[1759413567724,32.2,226.6,226.55,10.87647521]
[1759413567921,32.2,226.6,226.53,10.87647521]
[1759413567922,1.71400819,226.58,226.53,10.87647521]
[1759413568130,1.71400819,226.58,226.55,10.87647521]
[1759413568320,4.4646815,226.57,226.55,10.87647521]
[1759413568520,4.4646815,226.57,226.48,10.87647521]
[1759413568723,4.4646815,226.57,226.53,10.87647521]
[1759413569035,32.2,226.6,226.55,10.87647521]
[1759413569332,4.4646815,226.59,226.55,10.87647521]
[1759413569999,32.2,226.6,226.57,10.87647521]
[1759413570235,36.6646815,226.6,226.57,10.87647521]
[1759413571223,32.2,226.6,226.57,10.87647521]
[1759413571430,32.2,226.59,226.57,0.72]
[1759413572542,36.61325833,226.59,226.55,11.59647521]
[1759413573021,32.2,226.59,226.56,0.72]
[1759413573218,32.2,226.59,226.54,15.29070284]
[1759413573524,32.2,226.59,226.56,10.87647521]
[1759413573728,32.2,226.59,226.56,11.59647521]
[1759413573930,32.18,226.59,226.56,11.59647521]
[1759413576142,32.18,226.59,226.56,16.01027648]
[1759413576436,32.18,226.59,226.58,10.87647521]
[1759413577313,32.18,226.59,226.55,10.87647521]
[1759413577532,32.18,226.59,226.56,0.72]
[1759413577741,32.18,226.59,226.56,5.13370313]
[1759413577941,32.18,226.59,226.57,11.59647521]
[1759413578240,32.18,226.59,226.58,11.59647521]
[1759413579645,4.4646815,226.66,226.59,10.87647521]
[1759413579940,0.7,226.75,226.69,20.8]
[1759413580243,10.91468892,226.7,226.69,32.39647521]
[1759413581140,10.91468892,226.7,226.69,10.87647521]
[1759413581442,10.91468892,226.7,226.69,11.59647521]
[1759413583825,10.91468892,226.7,226.69,10.87647521]
[1759413584338,10.91468892,226.7,226.69,11.59647521]
[1759413584931,10.91468892,226.7,226.69,10.87647521]
[1759413585950,22.94,226.73,226.69,10.87647521]
[1759413586140,22.94,226.73,226.69,11.59647521]
[1759413586459,22.94,226.73,226.7,11.59647521]
[1759413586662,4.4646815,226.78,226.72,10.87647521]
[1759413586834,32.14,226.77,226.72,10.87647521]
[1759413587159,32.14,226.77,226.72,0.72]
[1759413587722,0.7,226.76,226.7,10.87647521]
[1759413587920,4.4646815,226.73,226.7,10.87647521]
[1759413588118,4.4646815,226.73,226.67,10.87647521]
[1759413588942,4.4646815,226.72,226.61,13.25117604]
[1759413589142,4.4646815,226.7,226.64,10.87647521]
[1759413589322,4.4646815,226.7,226.66,10.87647521]
[1759413590022,4.4646815,226.7,226.63,10.87647521]
[1759413590223,1.71272223,226.68,226.63,15.2887926]
[1759413590725,0.7,226.77,226.67,10.87647521]
[1759413590940,24.93272223,226.77,226.69,10.87647521]
[1759413591540,24.93272223,226.77,226.71,10.87647521]
[1759413592054,1.71272223,226.76,226.66,20.8]
[1759413592233,2.67437329,226.76,226.7,4.41111601]
[1759413592433,2.67437329,226.75,226.7,4.41111601]
[1759413593032,2.67437329,226.75,226.7,5.13111601]
[1759413593553,2.67437329,226.76,226.7,5.13111601]
[1759413593745,2.67437329,226.71,226.63,10.87647521]
[1759413593938,34.79437329,226.7,226.63,10.87647521]
[1759413594844,2.67437329,226.69,226.63,15.28895369]
[1759413595242,2.67437329,226.68,226.63,15.28895369]
[1759413595635,2.67437329,226.68,226.63,15.95895369]
[1759413595833,2.67437329,226.67,226.63,0.67]
[1759413596057,2.67437329,226.68,226.63,0.67]
[1759413596255,32.12,226.7,226.65,10.87647521]
[1759413596430,32.12,226.7,226.67,10.87647521]
[1759413596629,38.65750906,226.7,226.65,10.87647521]
[1759413596958,38.65750906,226.7,226.66,0.67]
[1759413597150,43.06863082,226.7,226.67,10.87647521]
[1759413597331,6.53750906,226.69,226.64,15.28874776]
[1759413597661,6.53750906,226.69,226.64,15.95874776]
[1759413598152,38.65750906,226.7,226.65,0.67]
[1759413598860,43.06868224,226.7,226.65,0.67]
[1759413599159,32.12,226.69,226.66,10.87647521]
[1759413599343,20.8,226.74,226.67,0.67]
[1759413599543,32.12,226.73,226.67,0.67]
[1759413599745,38.65750906,226.73,226.67,0.67]
[1759413600135,32.12,226.73,226.67,0.67]
[1759413600333,32.12,226.73,226.59,13.25234676]
[1759413600334,6.53750906,226.7,226.64,4.41227968]
[1759413600537,6.53750906,226.66,226.63,10.87647521]
[1759413600761,4.41195734,226.66,226.58,10.87647521]
[1759413600931,6.53750906,226.64,226.6,0.67]
[1759413601435,6.53750906,226.61,226.57,0.67]
[1759413601747,6.53750906,226.61,226.57,11.54647521]
[1759413602341,38.63750906,226.63,226.58,11.54647521]
[1759413602742,32.1,226.63,226.58,15.95988946]
[1759413602954,32.1,226.63,226.59,0.67]
[1759413603154,32.1,226.63,226.57,4.41364698]
[1759413603359,0.67,226.72,226.62,10.87647521]
[1759413603557,32.1,226.71,226.64,10.87647521]
[1759413603960,38.63750906,226.71,226.64,10.87647521]
[1759413604161,7.20750906,226.7,226.64,10.87647521]
[1759413604746,11.61865868,226.7,226.64,15.28866341]
[1759413604955,11.61865868,226.7,226.64,10.87647521]
[1759413605144,38.63750906,226.71,226.64,15.28871435]
[1759413605347,32.1,226.71,226.65,0.67]
[1759413606055,4.41052534,226.74,226.66,10.87647521]
[1759413606256,6.53750906,226.71,226.66,10.87647521]
[1759413606455,7.20750906,226.71,226.66,10.87647521]
[1759413607154,11.61852933,226.71,226.66,10.87647521]
[1759413607561,10.94852933,226.71,226.66,10.87647521]
[1759413607750,11.61852933,226.71,226.66,10.87647521]
[1759413608479,6.53750906,226.68,226.66,10.87647521]
[1759413608657,38.63750906,226.68,226.66,10.87647521]
[1759413608849,32.1,226.68,226.66,10.87647521]
[1759413609854,32.1,226.68,226.67,0.67]
[1759413610058,20.8,226.77,226.67,90.74647521]
[1759413610266,15.63254009,226.81,226.68,11.54647521]
[1759413610267,32.08,226.76,226.68,11.54647521]
[1759413610451,2.30240086,226.81,226.7,10.87647521]
[1759413610651,28.9,226.8,226.72,10.87647521]
[1759413610963,28.9,226.8,226.74,10.87647521]
[1759413611262,28.9,226.8,226.76,15.28636635]
[1759413611476,0.1,226.82,226.78,10.87647521]
[1759413611658,32.18,226.82,226.78,10.87647521]
[1759413611984,32.18,226.82,226.78,0.67]
[1759413612156,32.18,226.82,226.75,0.67]
[1759413612474,32.18,226.82,226.76,15.2863954]
[1759413612658,36.58878456,226.82,226.76,10.87647521]
[1759413612847,6.53750906,226.8,226.74,10.87647521]
[1759413613056,6.53750906,226.81,226.74,11.54647521]
[1759413613266,32.18,226.82,226.76,10.87647521]
[1759413613658,32.18,226.82,226.77,0.67]
[1759413613857,32.18,226.82,226.79,10.87647521]
[1759413614576,32.18,226.82,226.79,0.67]
[1759413614775,32.18,226.82,226.81,10.87647521]
[1759413614776,0.1,226.82,226.81,10.87647521]
[1759413614950,0.1,226.82,226.76,10.87647521]
[1759413615152,0.1,226.82,226.78,10.87647521]
[1759413615475,6.53750906,226.8,226.75,10.87647521]
[1759413615777,6.53750906,226.8,226.75,0.67]
[1759413615955,38.61750906,226.81,226.72,10.87647521]
[1759413616162,38.61750906,226.81,226.74,10.87647521]
[1759413616464,32.08,226.81,226.76,10.87647521]
[1759413616649,32.08,226.81,226.77,0.67]
[1759413617176,0.1,226.82,226.79,10.87647521]
[1759413617379,0.1,226.82,226.81,10.87647521]
[1759413617754,0.1,226.82,226.81,11.54647521]
[1759413618571,0.1,226.82,226.81,0.67]
[1759413618767,0.1,226.82,226.79,11.54647521]
[1759413619176,0.1,226.82,226.81,10.87647521]
[1759413619353,0.1,226.82,226.8,10.87647521]
[1759413619561,0.1,226.82,226.81,0.67]
[1759413619764,0.1,226.82,226.8,10.87647521]
[1759413619957,0.1,226.82,226.8,11.54647521]
[1759413620759,0.1,226.82,226.8,10.87647521]
[1759413620966,0.1,226.82,226.8,11.54647521]
[1759413621274,0.1,226.82,226.8,0.67]
[1759413621476,0.1,226.82,226.81,10.87647521]
[1759413623282,7.33750906,226.82,226.8,10.87647521]
[1759413623488,6.53750906,226.81,226.76,10.87647521]
[1759413623687,0.1,226.82,226.77,0.67]
[1759413623893,0.1,226.82,226.78,0.67]
[1759413624095,0.1,226.82,226.8,10.87647521]
[1759413624695,0.1,226.82,226.8,0.71]
[1759413624876,0.1,226.82,226.77,15.28622903]
[1759413625192,4.50878591,226.82,226.76,20.8]
[1759413625393,6.53750906,226.81,226.77,10.87647521]
[1759413625593,15.53074164,226.82,226.7,0.71]
[1759413625594,6.53750906,226.78,226.7,0.71]
[1759413625821,6.53750906,226.76,226.71,10.87647521]
[1759413626001,6.53750906,226.75,226.71,10.87647521]
[1759413626504,6.53750906,226.72,226.66,0.71]
[1759413626673,0.71,226.78,226.66,0.71]
[1759413626878,6.53750906,226.74,226.67,10.87647521]
[1759413627100,6.53750906,226.69,226.63,0.71]
[1759413627282,0.71,226.71,226.63,0.71]
[1759413627634,0.71,226.71,226.6,10.87647521]
[1759413627779,6.53750906,226.67,226.62,10.87647521]
[1759413627969,6.53750906,226.68,226.63,0.71]
[1759413628172,6.53750906,226.64,226.56,0.71]
[1759413628592,6.53750906,226.64,226.57,10.87647521]
[1759413628780,6.53750906,226.65,226.57,11.58647521]
[1759413628975,10.94965669,226.65,226.59,10.87647521]
[1759413629894,10.94965669,226.65,226.57,0.71]
[1759413630068,4.41214763,226.65,226.57,0.71]
[1759413630273,4.41214763,226.65,226.54,20.8]
[1759413630274,6.53750906,226.58,226.54,10.87647521]
[1759413630679,6.53750906,226.58,226.53,10.87647521]
[1759413630875,6.53750906,226.58,226.53,11.58647521]
[1759413631269,10.95097092,226.58,226.53,11.58647521]
[1759413631484,10.95097092,226.58,226.52,10.87647521]
[1759413631905,32.75,226.6,226.52,10.87647521]
[1759413632214,6.53750906,226.58,226.52,10.87647521]
[1759413632607,6.53750906,226.57,226.52,10.87647521]
[1759413632909,6.53750906,226.62,226.54,10.87647521]
[1759413633087,32.04,226.62,226.56,10.87647521]
[1759413633885,6.53750906,226.59,226.52,20.8]
[1759413634089,6.53750906,226.57,226.52,10.87647521]
[1759413634297,6.53750906,226.57,226.52,11.58647521]
[1759413634502,6.53750906,226.58,226.52,11.58647521]
[1759413634701,6.53750906,226.58,226.48,20.8]
[1759413634702,6.53750906,226.58,226.5,10.87647521]
[1759413634891,6.53750906,226.52,226.5,10.87647521]
[1759413635090,4.41441722,226.54,226.47,0.71]
[1759413635414,10.95192628,226.54,226.48,10.87647521]
[1759413635793,6.53750906,226.54,226.48,10.87647521]
[1759413636391,38.57750906,226.55,226.48,10.87647521]
[1759413636710,32.04,226.55,226.47,10.87647521]
[1759413636894,38.57750906,226.55,226.47,0.71]
[1759413637093,42.99166217,226.55,226.48,15.2918213]
[1759413637528,10.98685704,226.57,226.5,10.87647521]
[1759413637692,10.98685704,226.57,226.52,10.87647521]
[1759413637885,18.2343661,226.57,226.52,10.87647521]
[1759413638110,6.53750906,226.55,226.5,10.87647521]
[1759413638688,6.53750906,226.56,226.52,10.87647521]
[1759413638905,21.93807388,226.57,226.52,10.87647521]
[1759413639411,47.44056482,226.57,226.52,11.58647521]
[1759413639612,47.44056482,226.57,226.5,15.29146506]
[1759413639797,32.04,226.57,226.51,10.87647521]
[1759413639998,4.41306701,226.6,226.52,0.71]
[1759413640218,11.03087703,226.64,226.52,0.71]
[1759413640219,7.24750906,226.64,226.54,20.8]
[1759413640517,32.04,226.63,226.55,11.58647521]
[1759413640695,32.04,226.63,226.57,10.87647521]
[1759413641017,4.41094694,226.71,226.59,10.87647521]
[1759413641220,0.71,226.7,226.59,15.28965471]
[1759413641416,6.53750906,226.67,226.59,15.28965471]
[1759413641588,6.53750906,226.67,226.61,10.87647521]
[1759413641789,6.53750906,226.69,226.61,10.87647521]
[1759413642404,6.53750906,226.68,226.61,10.87647521]
[1759413642651,6.53750906,226.66,226.59,10.87647521]
[1759413642814,0.71,226.67,226.59,10.87647521]
[1759413643017,32.04,226.66,226.61,10.87647521]
[1759413643328,32.75,226.73,226.63,10.87647521]
[1759413643504,32.75,226.73,226.65,10.87647521]
[1759413643816,32.04,226.73,226.67,10.87647521]
[1759413644007,6.53750906,226.8,226.69,10.87647521]
[1759413644209,32.75,226.79,226.69,10.87647521]
[1759413644523,6.53750906,226.76,226.69,10.87647521]
[1759413645024,0.71,226.75,226.66,10.87647521]
[1759413645223,4.41092144,226.71,226.66,10.87647521]
[1759413645893,6.53750906,226.7,226.66,10.87647521]
[1759413646311,6.53750906,226.7,226.63,10.87647521]
[1759413646594,6.53750906,226.68,226.63,10.87647521]
[1759413646904,4.41092144,226.71,226.63,10.87647521]
[1759413647101,6.53750906,226.68,226.63,10.87647521]
[1759413647418,10.949092,226.68,226.63,11.58647521]
[1759413647597,10.949092,226.68,226.64,0.71]
[1759413648012,10.949092,226.68,226.62,10.87647521]
[1759413648402,10.9490151,226.68,226.62,10.87647521]
[1759413648602,6.53750906,226.66,226.62,10.87647521]
[1759413648804,6.53750906,226.64,226.58,10.87647521]
[1759413649113,6.53750906,226.62,226.55,0.71]
[1759413649302,10.95087024,226.59,226.52,0.71]
[1759413649501,6.53750906,226.59,226.52,21.51]
[1759413649707,36.43288971,226.61,226.53,11.58647521]
[1759413649907,6.53750906,226.57,226.53,10.87647521]
[1759413650103,6.53750906,226.57,226.51,10.87647521]
[1759413650896,6.53750906,226.53,226.47,0.71]
[1759413651306,4.41467411,226.52,226.44,20.8]
[1759413651524,4.41424539,226.54,226.47,0.71]
[1759413651727,0.71,226.58,226.47,0.71]
[1759413651899,8.06,226.6,226.52,10.87647521]
[1759413652104,6.53750906,226.59,226.52,10.87647521]
[1759413652326,4.46411119,226.58,226.52,10.87647521]
[1759413652529,8.77,226.6,226.52,10.87647521]
[1759413653044,8.77,226.6,226.48,31.67647521]
[1759413653349,8.77,226.6,226.52,10.87647521]
[1759413653496,8.77,226.6,226.53,0.71]
[1759413653497,8.06,226.6,226.53,0.71]
[1759413653697,4.41228379,226.64,226.54,10.87647521]
[1759413653898,32.02,226.63,226.56,10.87647521]
[1759413655208,4.46411119,226.6,226.55,10.87647521]
[1759413655553,8.87736861,226.59,226.55,10.87647521]
[1759413655708,8.87736861,226.59,226.52,4.41450849]
[1759413655709,4.46411119,226.57,226.52,10.87647521]
[1759413656037,4.46411119,226.6,226.54,10.87647521]
[1759413656245,4.46411119,226.61,226.54,10.87647521]
[1759413656414,4.46411119,226.6,226.54,10.87647521]
[1759413656620,4.46411119,226.59,226.54,10.87647521]
[1759413656805,4.46411119,226.59,226.54,0.66]
[1759413657200,36.48411119,226.62,226.55,0.66]
[1759413657405,0.72,226.65,226.55,0.66]
[1759413657406,4.46411119,226.64,226.55,0.66]
[1759413657601,32.02,226.63,226.57,10.87647521]
[1759413657823,32.02,226.63,226.58,0.66]
[1759413658036,32.02,226.65,226.59,0.66]
[1759413659214,32.02,226.65,226.57,10.87647521]
[1759413659419,4.46411119,226.61,226.56,10.87647521]
[1759413659614,8.87702105,226.61,226.56,10.87647521]
[1759413659814,4.46411119,226.63,226.56,15.95031118]
[1759413660538,4.46411119,226.64,226.56,15.95031118]
[1759413660741,36.48411119,226.65,226.56,15.95031118]
[1759413660908,8.87600565,226.66,226.57,0.66]
[1759413661108,32.02,226.65,226.57,0.66]
[1759413661533,32.74,226.65,226.56,15.95031118]
[1759413661728,36.48411119,226.65,226.56,15.29031118]
[1759413661943,32.02,226.65,226.57,0.66]
[1759413662452,0.72,226.72,226.6,10.87647521]
[1759413662747,36.48411119,226.71,226.62,10.87647521]
[1759413662951,32.02,226.71,226.64,10.87647521]
[1759413663130,4.46411119,226.69,226.64,10.87647521]
[1759413663314,32.02,226.71,226.6,10.87647521]
[1759413663315,4.46411119,226.65,226.6,10.87647521]
[1759413663514,4.46411119,226.65,226.6,11.53647521]
[1759413663733,32.02,226.71,226.62,10.87647521]
[1759413664051,32.02,226.71,226.61,0.66]
[1759413664052,4.46411119,226.63,226.54,10.87647521]
[1759413664216,4.46411119,226.58,226.54,10.87647521]
[1759413664550,4.46411119,226.58,226.47,13.25820351]
[1759413664551,4.46411119,226.57,226.51,31.67647521]
[1759413664725,0.72,226.6,226.51,31.67647521]
[1759413664919,4.46411119,226.57,226.51,31.67647521]
[1759413665112,4.46411119,226.52,226.46,0.66]
[1759413665313,4.46411119,226.51,226.46,0.66]
[1759413665512,20.8,226.59,226.47,0.66]
[1759413665718,0.72,226.63,226.5,10.87647521]
[1759413666016,23.58411119,226.62,226.51,0.66]
[1759413666322,23.58411119,226.62,226.54,10.87647521]
[1759413666323,19.12,226.62,226.54,10.87647521]
[1759413666529,4.46411119,226.58,226.48,0.66]
[1759413666737,4.46411119,226.54,226.49,10.87647521]
[1759413667035,4.46411119,226.53,226.49,0.66]
[1759413667232,36.48411119,226.55,226.49,0.66]
[1759413667445,4.46411119,226.55,226.46,10.87647521]
[1759413667743,4.41462122,226.52,226.46,11.53647521]
[1759413667950,4.46411119,226.49,226.43,11.07647521]
[1759413668235,4.46411119,226.51,226.45,10.87647521]
[1759413668611,4.41446643,226.53,226.45,10.87647521]
[1759413668813,4.46411119,226.49,226.43,0.2]
[1759413669019,4.46411119,226.48,226.43,0.2]
[1759413669355,36.25053229,226.53,226.43,0.2]
[1759413669356,4.46411119,226.46,226.43,0.2]
[1759413669726,4.41598586,226.45,226.43,0.2]
[1759413669924,4.46411119,226.44,226.43,0.2]
[1759413670938,5.18411119,226.44,226.43,0.2]
[1759413671922,0.72,226.44,226.43,0.2]
[1759413672122,5.18411119,226.44,226.43,1e-08]
[1759413672331,20.8,226.4,226.39,1e-08]
[1759413672536,20.8,226.37,226.31,0.2]
[1759413672831,25.26411119,226.37,226.31,0.2]
[1759413673128,25.98411119,226.37,226.31,0.2]
[1759413673521,4.46411119,226.32,226.31,0.2]
[1759413673847,36.48411119,226.32,226.31,0.2]
[1759413674150,40.90263363,226.32,226.31,0.2]